bitfinex-derivatives/quotes_ETHF0:USTF0_20251103
["timestamp","ask_amount","ask_price","bid_price","bid_amount"]
[1762184058576,3.2078,3610.9,3610.0,3.2078]
[1762184059086,0.00352382,3611.0,3610.8,3.2078]
[1762184059383,3.2078,3612.2,3610.7,3.2078]
[1762184059582,1.449,3612.4,3610.2,3.2078]
[1762184059879,3.2078,3612.2,3611.4,3.2078]
[1762184060080,12.46249,3612.0,3610.7,3.2078]
[1762184060389,0.00251509,3612.0,3611.1,3.2078]
[1762184060591,0.00251509,3612.0,3610.7,0.00307131]
[1762184060592,0.00251509,3612.0,3610.7,3.21087131]
[1762184060778,0.4985,3611.9,3611.7,3.2078]
[1762184061577,0.00251509,3612.0,3611.3,3.2078]
[1762184062385,1.34766192,3612.4,3611.9,3.2078]
[1762184062688,3.2078,3613.5,3612.1,3.2078]
[1762184062883,3.2078,3613.2,3612.1,3.2078]
[1762184063183,3.2078,3612.2,3610.7,0.00307131]
[1762184063386,3.2078,3611.3,3610.7,0.00307131]
[1762184063690,3.2078,3611.0,3608.8,3.2078]
[1762184063987,1.3679,3610.0,3608.8,3.2078]
[1762184064178,1.3679,3610.0,3608.7,3.2078]
[1762184064378,3.2078,3609.8,3608.1,3.2078]
[1762184064786,3.2078,3609.5,3608.4,3.2078]
[1762184064978,3.20984846,3609.5,3608.1,3.21088401]
[1762184065289,3.2078,3609.3,3608.1,0.00308401]
[1762184065583,0.00204846,3609.5,3606.5,3.2078]
[1762184065584,3.2078,3608.2,3606.5,3.2078]
[1762184065786,3.2078,3607.3,3606.0,3.2078]
[1762184066291,3.2078,3606.9,3606.0,3.2078]
[1762184066586,3.21058828,3606.9,3606.0,0.00231735]
[1762184066788,3.21058828,3606.9,3604.9,3.2078]
[1762184066789,3.2078,3606.4,3604.9,3.2078]
[1762184067087,1.4675,3606.0,3604.9,3.2078]
[1762184067277,1.4675,3606.0,3605.0,3.2078]
[1762184067481,1.4675,3606.0,3602.2,12.49594]
[1762184067482,3.2078,3605.9,3604.6,3.2078]
[1762184067784,3.2078,3604.8,3604.6,0.00302762]
[1762184068094,3.2078,3604.8,3599.8,13.75483]
[1762184068095,12.5238,3605.7,3603.8,3.2078]
[1762184068283,3.2078,3605.2,3602.5,3.2078]
[1762184068486,3.2078,3605.2,3599.6,1.25051]
[1762184068487,3.2078,3603.4,3602.1,3.2078]
[1762184068687,3.2078,3603.8,3601.3,3.2078]
[1762184068887,3.2078,3603.4,3601.5,3.2078]
[1762184069185,0.49983,3602.4,3601.3,0.00308803]
[1762184069389,0.49981,3602.5,3602.1,3.2078]
[1762184069690,0.49972,3603.2,3602.1,3.2078]
[1762184069891,3.2078,3603.6,3601.7,3.2078]
[1762184070086,3.2078,3602.9,3601.6,3.2078]
[1762184070292,3.21012917,3603.8,3602.8,3.2078]
[1762184070687,3.21012917,3603.8,3602.1,3.2078]
[1762184070987,3.21012917,3603.8,3602.8,3.2078]
[1762184071180,3.21012917,3603.8,3602.0,3.2078]
[1762184071379,3.2078,3602.9,3602.0,3.2078]
[1762184071589,3.21012917,3603.8,3602.8,3.2078]
[1762184071785,3.2078,3603.2,3601.5,3.2078]
[1762184072089,3.2078,3603.2,3602.4,3.2078]
[1762184072489,0.00232917,3603.8,3602.4,3.2078]
[1762184072490,3.2078,3603.6,3602.4,3.2078]
[1762184072681,0.00232917,3603.8,3602.8,3.2078]
[1762184072880,0.00232917,3603.8,3603.0,3.2078]
[1762184073279,0.00232917,3603.8,3602.4,3.2078]
[1762184073489,0.00232917,3603.8,3602.1,3.2078]
[1762184073887,3.2078,3603.5,3602.1,3.2078]
[1762184074286,0.00232917,3603.8,3602.1,3.2078]
[1762184074491,0.00232917,3603.8,3601.3,0.00308803]
[1762184074492,0.00232917,3603.8,3602.3,3.2078]
[1762184074682,0.00232917,3603.8,3601.3,0.00308803]
[1762184074683,3.2078,3603.6,3602.8,3.2078]
[1762184074884,3.2078,3603.6,3602.3,3.2078]
[1762184075089,3.2078,3603.2,3602.3,3.2078]
[1762184075291,0.00232917,3603.8,3602.7,3.2078]
[1762184075493,3.2078,3604.3,3603.4,3.2078]
[1762184075795,3.2078,3605.9,3604.2,3.2078]
[1762184075985,3.2078,3605.9,3605.1,3.2078]
[1762184076587,0.49937,3605.7,3605.5,3.2078]
[1762184076786,0.49943,3605.2,3605.1,0.00198242]
[1762184077190,0.49942,3605.3,3605.1,0.00198242]
[1762184077488,3.70722,3605.3,3605.1,0.00198242]
[1762184078087,3.2078,3605.8,3605.1,0.00198242]
[1762184078289,3.2078,3608.1,3606.1,1.24821]
[1762184078490,4.01112472,3609.4,3608.0,3.2078]
[1762184078795,12.46542,3611.1,3606.0,12.48273]
[1762184078796,0.49881,3609.7,3609.1,3.2078]
[1762184079096,12.46766,3610.5,3609.1,3.2078]
[1762184079305,3.2078,3610.9,3609.8,3.2078]
[1762184079306,1.37017669,3610.0,3609.8,3.2078]
[1762184079599,1.37017669,3610.0,3609.9,3.2078]
[1762184079894,1.37017669,3610.0,3609.1,0.00206691]
[1762184079895,1.37017669,3610.0,3609.4,3.2078]
[1762184080999,1.37017669,3610.0,3609.1,0.00206691]
[1762184081497,0.00227669,3610.0,3609.3,3.2078]
[1762184081693,3.2078,3611.7,3609.9,3.2078]
[1762184081893,3.2078,3611.7,3610.6,3.2078]
[1762184082093,3.2078,3611.7,3609.1,0.00206691]
[1762184082094,3.2078,3610.7,3610.1,3.2078]
[1762184082597,3.2078,3611.2,3609.1,3.20986691]
[1762184082797,0.00356835,3610.7,3609.1,3.20986691]
[1762184082995,1.4675,3610.0,3609.1,0.00206691]
[1762184083203,3.2078,3609.7,3609.1,0.00206691]
[1762184083404,3.2078,3609.3,3607.9,3.2078]
[1762184083710,1.4675,3610.0,3607.5,3.2078]
[1762184083711,3.2078,3608.4,3607.5,3.2078]
[1762184083897,3.2078,3608.0,3607.5,3.2078]
[1762184084201,3.2078,3608.0,3606.7,3.2078]
[1762184084402,1.3943,3607.2,3606.7,0.00324252]
[1762184085403,1.3943,3607.2,3606.7,3.21104252]
[1762184085704,3.2078,3607.0,3605.7,3.2078]
[1762184085903,3.2078,3607.0,3603.0,9.319]
[1762184085904,3.2078,3607.0,3605.3,3.2078]
[1762184086105,0.4994,3605.4,3605.3,3.2078]
[1762184086408,0.49946,3604.9,3604.8,3.2078]
[1762184086906,0.0026948,3604.9,3604.8,3.21119748]
[1762184087203,3.2078,3607.0,3604.8,3.21119748]
[1762184087504,3.2078,3606.6,3604.8,0.00339748]
[1762184087698,3.2078,3605.8,3604.8,0.00339748]
[1762184087897,3.2078,3605.8,3605.1,3.2078]
[1762184088106,3.21060009,3605.8,3604.8,0.00339748]
[1762184088504,3.2078,3604.9,3603.4,3.2078]
[1762184088698,3.2078,3604.9,3601.3,1.24993]
[1762184088699,3.2078,3604.9,3603.8,3.2078]
[1762184089207,3.2078,3604.7,3603.4,3.2078]
[1762184089405,3.2078,3604.3,3603.4,0.00230198]
[1762184089599,0.0061,3604.3,3603.4,0.00230198]
[1762184089803,0.00280009,3605.8,3604.2,3.2078]
[1762184090009,0.00280009,3605.8,3605.3,3.2078]
[1762184090400,0.00280009,3605.8,3605.7,3.2078]
[1762184091401,0.00280009,3605.8,3604.4,3.2078]
[1762184091605,0.00280009,3605.8,3604.5,3.2078]
[1762184091806,3.2078,3605.5,3604.5,3.2078]
[1762184092004,0.00280009,3605.8,3605.1,3.2078]
[1762184092313,3.2078,3607.4,3605.7,3.2078]
[1762184092612,3.2078,3607.4,3606.7,3.2078]
[1762184092807,3.2078,3607.4,3605.9,3.2078]
[1762184093012,3.2078,3607.4,3606.5,0.01266969]
[1762184093213,1.3976316,3607.2,3606.5,0.01529343]
[1762184093606,0.49924,3606.6,3606.5,0.00262374]
[1762184096108,3.2078,3606.9,3606.5,0.00262374]
[1762184096310,3.2078,3609.7,3607.0,3.2078]
[1762184096510,3.2078,3610.1,3608.3,3.7068]
[1762184096706,3.2078,3610.9,3609.1,3.2078]
[1762184096906,3.2078,3610.9,3609.7,3.2078]
[1762184097112,3.2078,3610.9,3609.8,0.37215071]
[1762184097313,0.00336913,3610.0,3609.9,0.37215071]
[1762184098211,0.58479588,3610.0,3609.9,0.37215071]
[1762184098411,0.58479588,3610.0,3609.8,0.0020714]
[1762184098814,0.58479588,3610.0,3607.5,40.8]
[1762184098815,0.58479588,3610.0,3609.1,3.2078]
[1762184099015,3.79259588,3610.0,3609.1,3.2078]
[1762184099211,3.21116913,3610.0,3609.1,3.2078]
[1762184099419,3.21116913,3610.0,3608.1,3.2078]
[1762184099420,1.3943,3609.1,3608.1,3.2078]
[1762184099909,1.3943,3609.1,3608.1,3.21041797]
[1762184100114,1.3943,3609.1,3608.5,3.2078]
[1762184100312,0.58142675,3608.8,3608.5,3.2078]
[1762184100512,0.58142675,3608.8,3607.3,3.2078]
[1762184100513,3.78922675,3608.8,3607.3,3.2078]
[1762184100707,1.3943,3607.4,3605.2,3.2078]
[1762184100913,3.2078,3607.1,3606.3,3.2078]
[1762184101307,1.3943,3607.4,3606.7,2.62637325]
[1762184101511,1.39744051,3607.4,3606.7,0.00248008]
[1762184101905,1.39744051,3607.4,3607.2,3.2078]
[1762184101906,0.00314051,3607.4,3607.2,3.2078]
[1762184102109,1.3943,3609.1,3607.2,3.2078]
[1762184102311,1.3943,3609.1,3608.4,3.2078]
[1762184102612,3.2078,3609.5,3606.7,0.00248008]
[1762184102817,3.2078,3608.4,3606.7,0.00248008]
[1762184103019,3.21031075,3608.4,3607.3,3.2078]
[1762184103315,0.00251075,3608.4,3607.5,3.2078]
[1762184103514,0.00251075,3608.4,3607.4,3.2078]
[1762184103716,0.00251075,3608.4,3608.3,3.2078]
[1762184103913,3.2078,3610.0,3608.3,3.2078]
[1762184104118,4.6021,3610.8,3609.8,3.2078]
[1762184104313,3.2078,3610.4,3609.2,3.2078]
[1762184104615,3.18073034,3609.8,3608.4,3.2078]
[1762184104813,3.18073034,3609.8,3609.3,3.2078]
[1762184104814,3.2078,3609.8,3609.3,3.2078]
[1762184105014,0.00225396,3609.8,3609.3,3.21075395]
[1762184105410,0.00225396,3609.8,3609.7,3.2078]
[1762184105613,3.2078,3611.6,3609.7,3.2078]
[1762184105813,3.2078,3611.2,3610.2,3.2078]
[1762184106014,3.2078,3611.6,3610.7,3.2078]
[1762184106513,3.2078,3611.1,3610.1,3.2078]
[1762184106716,0.00254863,3611.6,3610.9,3.2078]
[1762184107611,0.00254863,3611.6,3611.2,3.2078]
[1762184107817,1.24648,3611.4,3610.0,3.2078]
[1762184108116,0.49885,3609.4,3609.3,0.00295395]
[1762184108321,0.49885,3609.4,3609.3,3.21075395]
[1762184108509,9.314,3613.8,3609.3,3.21075395]
[1762184108717,3.2078,3612.1,3611.2,3.17003137]
[1762184109112,4.6021,3612.5,3611.2,3.17003137]
[1762184109513,3.2078,3613.7,3611.3,40.8]
[1762184109718,3.2078,3613.7,3612.6,3.2078]
[1762184110316,3.2078,3614.6,3613.5,3.2078]
[1762184110614,1.3943,3616.2,3614.1,3.2078]
[1762184110615,0.00203124,3614.4,3614.1,3.2078]
[1762184111217,3.124e-05,3614.4,3614.1,3.2078]
[1762184111611,3.124e-05,3614.7,3614.2,6.9168]
[1762184111813,3.124e-05,3614.7,3614.6,3.2078]
[1762184112012,3.2078,3616.2,3614.6,3.2078]
[1762184112218,3.2078,3616.2,3613.5,0.003192]
[1762184112219,3.2078,3618.3,3616.1,3.2078]
[1762184112417,3.2078,3619.2,3617.9,3.2078]
[1762184112619,3.21119655,3619.2,3617.1,3.2078]
[1762184112917,3.2078,3619.0,3617.3,3.2078]
[1762184113124,3.2078,3618.2,3617.1,0.00255462]
[1762184113319,0.00339655,3619.2,3617.1,0.00255462]
[1762184113320,3.2078,3618.6,3617.1,0.00255462]
[1762184113622,3.2078,3618.7,3617.1,0.00255462]
[1762184113817,3.2078,3618.7,3617.9,3.2078]
[1762184114017,0.00339655,3619.2,3618.5,3.2078]
[1762184114318,0.00339655,3619.2,3618.8,3.2078]
[1762184114718,0.00339655,3619.2,3618.7,3.2078]
[1762184115220,3.2078,3619.0,3618.3,3.2078]
[1762184115518,12.43944,3618.7,3617.2,3.2078]
[1762184115721,3.2078,3618.2,3617.1,0.00255462]
[1762184115912,0.49777,3617.3,3617.1,0.00255462]
[1762184116615,1.4351,3617.6,3613.8,3.97]
[1762184116616,3.2078,3617.2,3613.8,3.97]
[1762184116816,3.2078,3615.4,3614.0,3.2078]
[1762184117016,1.4351,3615.7,3613.8,3.2078]
[1762184117216,3.2078,3616.7,3615.6,3.2078]
[1762184117418,3.2078,3618.3,3616.4,3.2078]
[1762184117614,3.2078,3617.9,3616.5,3.2078]
[1762184118015,3.2078,3617.9,3616.9,3.2078]
[1762184118227,0.00204996,3618.3,3617.8,3.2078]
[1762184118420,0.00204996,3618.3,3618.1,3.2078]
[1762184119124,4.6021,3619.8,3618.2,3.2078]
[1762184119421,4.6021,3619.8,3618.9,3.2078]
[1762184119629,1.3943,3619.8,3618.7,3.2078]
[1762184120121,3.2078,3619.5,3618.7,3.2078]
[1762184120322,3.2078,3619.5,3617.9,3.2078]
[1762184120625,3.2078,3619.1,3618.3,3.2078]
[1762184121018,3.2078,3619.1,3617.0,40.8]
[1762184121019,0.02702928,3619.7,3618.4,3.2078]
[1762184121225,0.02702928,3619.7,3619.1,3.2078]
[1762184121526,4.6429,3621.6,3619.5,3.2078]
[1762184121825,4.6429,3621.6,3620.0,3.2078]
[1762184122128,3.2078,3621.1,3619.8,3.2078]
[1762184122323,3.2078,3621.1,3619.1,0.00296252]
[1762184122324,4.6429,3621.6,3619.2,3.2078]
[1762184122516,3.2078,3621.2,3620.4,3.2078]
[1762184122717,3.20975624,3621.2,3619.5,3.2078]
[1762184122922,3.2078,3620.8,3619.5,3.2078]
[1762184123121,3.2078,3619.6,3619.1,0.00296252]
[1762184123319,3.2078,3619.2,3617.9,3.2078]
[1762184123522,3.2078,3619.0,3617.9,3.2078]
[1762184123729,3.2078,3619.0,3617.4,3.2078]
[1762184124023,3.2078,3618.8,3617.5,3.2078]
[1762184124226,3.2078,3618.8,3618.0,3.2078]
[1762184124532,3.2078,3618.8,3618.0,3.20980465]
[1762184125224,1.4351,3619.8,3618.7,3.2078]
[1762184125421,1.4351,3619.8,3618.4,3.2078]
[1762184125422,0.49755,3618.9,3618.4,3.2078]
[1762184125622,15.64452,3619.5,3618.0,3.20980465]
[1762184125821,3.2078,3619.5,3618.8,3.2078]
[1762184126022,0.49759,3618.6,3618.4,3.2078]
[1762184126929,0.49774,3617.5,3617.4,3.2078]
[1762184127229,0.49775,3617.5,3617.3,3.2078]
[1762184127427,3.2078,3618.9,3617.3,3.2078]
[1762184127428,12.43942,3618.7,3617.3,3.2078]
[1762184127623,15.64853,3618.4,3617.3,3.2078]
[1762184127924,0.49776,3617.4,3617.3,2.41909]
[1762184128122,0.00350597,3617.4,3617.3,0.00356286]
[1762184128621,0.00350597,3617.4,3614.2,2.68103943]
[1762184128622,0.00350597,3617.4,3616.4,3.2078]
[1762184128825,0.00350597,3617.4,3616.0,3.2078]
[1762184129022,0.00350597,3617.4,3616.4,3.2078]
[1762184129221,0.00350597,3617.4,3616.8,3.2078]
[1762184129419,0.00350597,3617.4,3615.3,1.24509]
[1762184129420,0.00350597,3617.4,3617.3,3.2078]
[1762184129729,4.6429,3619.8,3617.3,3.2078]
[1762184130030,4.6429,3619.8,3619.0,3.2078]
[1762184130222,4.6429,3619.8,3618.4,3.2078]
[1762184130423,4.6429,3619.8,3617.2,0.95704628]
[1762184130424,4.6429,3619.8,3618.7,3.2078]
[1762184130618,3.21042499,3619.8,3618.7,3.21128483]
[1762184130926,3.2078,3621.4,3619.8,0.4974]
[1762184131124,1.3577,3624.4,3620.9,3.2078]
[1762184131125,3.2078,3621.8,3620.9,3.2078]
[1762184131430,1.3577,3624.4,3620.4,3.2078]
[1762184131431,3.2078,3621.3,3620.4,3.2078]
[1762184131631,3.2078,3621.7,3620.4,3.2078]
[1762184131823,1.43751218,3621.6,3621.0,3.2078]
[1762184132023,0.00241218,3621.6,3621.5,3.2078]
[1762184132229,0.00241218,3621.6,3621.5,3.20979915]
[1762184132534,0.00241218,3621.6,3621.5,0.00199915]
[1762184133024,3.21021218,3621.6,3620.0,3.2078]
[1762184133220,3.21021218,3621.6,3619.6,3.2078]
[1762184133221,3.2078,3620.6,3619.6,3.2078]
[1762184133426,3.2078,3620.6,3618.8,0.95704628]
[1762184133427,3.2078,3621.5,3620.4,3.2078]
[1762184133622,0.00241218,3621.6,3621.4,3.2078]
[1762184134021,0.00241218,3621.6,3621.4,3.21046974]
[1762184134627,1e-08,3621.6,3621.4,3.92825445]
[1762184134925,1e-08,3621.6,3621.5,6.9032]
[1762184135125,1e-08,3621.6,3621.4,3.21046974]
[1762184135126,3.2078,3624.0,3621.4,3.21046974]
[1762184135330,3.2078,3622.5,3620.9,1.43556943]
[1762184135528,13.67392,3621.1,3619.6,3.2078]
[1762184135828,4.45105,3620.6,3618.4,3.70539]
[1762184136035,4.45105,3620.6,3619.6,3.2078]
[1762184136036,3.2078,3620.6,3619.6,3.2078]
[1762184136220,2.59618175,3620.6,3619.6,3.2078]
[1762184136420,0.00202492,3620.6,3620.1,3.2078]
[1762184136619,0.00202492,3620.6,3619.9,3.2078]
[1762184136822,0.00202492,3620.6,3619.6,0.00212458]
[1762184137031,3.2078,3620.3,3619.6,0.00212458]
[1762184137227,0.00202492,3620.6,3619.9,3.2078]
[1762184137432,0.00202492,3620.6,3619.6,0.00212458]
[1762184137630,0.00202492,3620.6,3620.1,3.2078]
[1762184137832,3.2078,3621.6,3620.5,3.2078]
[1762184138031,6.77887277,3630.1,3621.2,3.2078]
[1762184138032,3.2078,3622.1,3621.2,3.2078]
[1762184138331,3.19133482,3629.3,3620.0,1.24347]
[1762184138332,3.2078,3622.5,3621.3,3.2078]
[1762184138534,9.286,3624.9,3622.1,3.2078]
[1762184138535,3.2078,3622.9,3622.1,3.2078]
[1762184138830,0.00200843,3622.9,3621.7,3.2078]
[1762184139037,0.00200843,3622.9,3622.5,3.2078]
[1762184139335,0.00200843,3622.9,3622.5,3.21133827]
[1762184139723,0.00200843,3622.9,3622.5,0.00353827]
[1762184140232,8.43e-06,3622.9,3622.7,3.17014813]
[1762184140435,1.81908145,3629.1,3622.7,3.17014813]
[1762184140436,3.2078,3624.2,3622.7,3.17014813]
[1762184140632,3.2078,3624.2,3623.3,3.2078]
[1762184140833,3.2078,3623.8,3622.7,3.2078]
[1762184141136,3.2078,3623.0,3622.5,0.00353827]
[1762184141332,3.2078,3622.6,3622.5,0.00353827]
[1762184141836,3.2078,3622.6,3620.5,3.2078]
[1762184142044,3.2078,3621.5,3620.5,3.2078]
[1762184142227,3.2078,3621.5,3619.6,2.35356632]
[1762184142228,3.2078,3621.5,3620.9,3.2078]
[1762184142428,3.21046996,3623.0,3621.4,3.2078]
[1762184142629,3.21046996,3623.0,3621.6,3.2078]
[1762184142931,0.49715,3621.8,3621.6,0.00227971]
[1762184143130,1.24256,3622.7,3621.6,0.00227971]
[1762184143328,0.49715,3621.8,3621.6,0.00227971]
[1762184143832,12.42874,3621.8,3620.1,3.2078]
[1762184144331,3.2078,3622.2,3620.1,3.2078]
[1762184144534,3.2078,3622.1,3620.6,3.2078]
[1762184144832,3.2078,3622.1,3620.7,3.2078]
[1762184145035,3.2078,3622.5,3621.2,3.2078]
[1762184145234,3.2078,3622.5,3620.6,0.00268016]
[1762184145235,3.2078,3622.5,3620.7,3.2078]
[1762184145539,3.2078,3622.5,3621.6,3.2078]
[1762184145741,3.2078,3622.9,3621.6,3.2078]
[1762184145927,3.2078,3622.5,3620.6,3.21048016]
[1762184146137,3.2078,3622.7,3620.6,0.00268016]
[1762184146434,3.2078,3621.3,3620.6,0.00268016]
[1762184147236,3.2078,3620.9,3620.6,0.00268016]
[1762184148538,4.4067,3624.4,3620.6,0.00268016]
[1762184148539,3.2078,3621.6,3620.6,0.00268016]
[1762184149042,3.2078,3621.2,3620.6,0.00268016]
[1762184149241,3.2078,3622.0,3620.9,3.2078]
[1762184149430,3.2078,3622.4,3621.9,0.49713]
[1762184149635,1.3577,3624.4,3620.6,1.88553322]
[1762184149636,3.2078,3622.9,3621.8,3.2078]
[1762184149939,1.3577,3624.4,3622.3,3.2078]
[1762184149940,3.2078,3623.6,3622.3,3.2078]
[1762184150337,3.2078,3623.6,3622.4,0.49706]
[1762184150636,0.03765187,3622.7,3621.9,3.2078]
[1762184150935,3.2078,3622.3,3621.3,3.2078]
[1762184151440,0.03765187,3622.7,3621.3,3.2078]
[1762184151639,3.2078,3622.8,3621.3,3.2078]
[1762184151640,0.03765187,3622.0,3621.3,3.2078]
[1762184152035,0.03765187,3622.0,3621.7,3.2078]
[1762184152237,3.2078,3622.8,3621.9,3.2078]
[1762184152534,3.2078,3622.4,3621.6,3.2078]
[1762184152734,3.2078,3622.4,3621.0,1.3345]
[1762184152940,0.49715,3621.7,3620.9,3.70505]
[1762184153136,3.2078,3622.4,3620.9,3.2078]
[1762184153338,3.2078,3622.4,3621.7,0.49714]
[1762184153534,0.49715,3621.8,3621.5,3.2078]
[1762184153730,4.45047,3622.4,3621.1,3.2078]
[1762184153935,3.2078,3622.4,3621.1,3.2078]
[1762184154141,0.49721,3621.3,3621.1,3.2078]
[1762184154339,3.2078,3621.6,3620.6,0.00268016]
[1762184154543,0.49713,3621.9,3620.8,0.49728]
[1762184154745,0.4971,3622.2,3621.5,0.49718]
[1762184154950,3.2078,3622.3,3621.4,3.2078]
[1762184155246,1.24515996,3623.0,3620.8,1.3345]
[1762184155247,3.21046996,3623.0,3622.1,3.7049]
[1762184155547,3.21046996,3623.0,3622.1,3.2078]
[1762184155737,3.21046996,3623.0,3621.7,3.2078]
[1762184155940,3.2078,3622.3,3621.8,0.49714]
[1762184156145,3.2078,3622.3,3621.7,3.2078]
[1762184156339,0.49711,3622.1,3621.7,3.2078]
[1762184156541,3.2078,3622.3,3621.7,3.2078]
[1762184156845,0.00266996,3623.0,3621.9,0.49713]
[1762184156846,3.2078,3622.8,3621.9,0.49713]
[1762184157043,0.00266996,3623.0,3621.7,3.2078]
[1762184157044,3.2078,3622.4,3621.7,3.2078]
[1762184157347,3.2078,3622.4,3621.7,5.17394552]
[1762184157539,3.2078,3622.4,3621.7,4.67679552]
[1762184157540,0.49708,3622.3,3621.7,4.67679552]
[1762184157736,0.4972,3621.4,3621.3,1.46899552]
[1762184157949,3.2078,3621.9,3621.0,3.2078]
[1762184158136,1.24273,3622.2,3621.0,3.2078]
[1762184158342,0.49721,3621.3,3621.1,1.46899552]
[1762184158544,3.2078,3621.7,3621.0,1.46899552]
[1762184158739,3.2078,3621.7,3620.6,4.67947568]
[1762184159143,3.2078,3621.3,3620.6,4.67947568]
[1762184159340,3.2078,3621.3,3621.0,1.46899552]
[1762184159841,3.2078,3621.3,3621.1,1.46899552]
[1762184160044,3.2078,3621.3,3621.0,1.46899552]
[1762184160244,3.2078,3621.9,3621.7,0.49716]
[1762184160449,3.2078,3622.8,3622.2,0.49708]
[1762184160639,3.2078,3622.8,3622.4,1.88285306]
[1762184161140,0.03765187,3622.6,3622.2,1.48051839]
[1762184161337,3.2078,3622.3,3621.8,1.48051839]
[1762184161539,3.2078,3622.3,3621.8,1.48083512]
[1762184161862,3.2078,3622.3,3622.1,1.48083512]
[1762184162147,3.2078,3622.3,3621.1,1.88285306]
[1762184162337,3.2078,3621.5,3620.8,1.88285306]
[1762184162537,3.2078,3620.9,3620.6,0.00268016]
[1762184162844,3.2078,3620.9,3619.7,3.0]
[1762184163045,3.2078,3619.8,3619.7,1.75086589]
[1762184163345,3.2078,3619.8,3617.8,1.88285306]
[1762184163646,3.2078,3619.2,3617.8,1.88285306]
[1762184163841,3.2078,3618.7,3617.8,1.88501453]
[1762184164042,3.2078,3620.5,3618.4,3.2078]
[1762184164343,3.13639812,3620.5,3619.8,1.97345324]
[1762184164548,3.2078,3620.1,3619.5,1.97345324]
[1762184164845,3.2078,3620.1,3619.4,3.2078]
[1762184165041,3.2078,3620.1,3619.8,3.2078]
[1762184165042,0.00313995,3620.1,3619.8,3.2078]
[1762184165351,3.2078,3620.9,3620.0,1.9722313]
[1762184165548,3.2078,3620.9,3619.5,2.35356632]
[1762184165549,3.2078,3622.2,3620.8,3.2078]
[1762184165746,3.2078,3622.3,3622.0,0.98595877]
[1762184166044,3.2078,3622.3,3621.6,3.2078]
[1762184166248,3.2078,3622.3,3622.2,0.98609138]
[1762184166549,3.2097559,3622.3,3622.2,0.9891323]
[1762184167143,0.0019559,3622.3,3622.2,0.98912958]
[1762184167346,3.2097559,3622.3,3622.2,0.00304092]
[1762184167648,0.0019559,3622.3,3622.2,0.00304092]
[1762184168248,3.2097559,3622.3,3622.2,0.00304092]
[1762184168448,0.0019559,3622.3,3622.2,0.00304092]
[1762184169148,0.0019559,3622.3,3621.8,0.88995689]
[1762184169343,3.2078,3621.9,3620.9,3.2078]
[1762184169545,3.2078,3621.5,3620.5,1.9722313]
[1762184169852,0.0019559,3622.3,3620.4,1.9722313]
[1762184169853,3.2078,3621.1,3620.4,1.9722313]
[1762184170055,3.2078,3621.1,3620.0,1.9722313]
[1762184170347,0.0019559,3622.3,3620.2,2.4696013]
[1762184170656,3.2078,3621.8,3620.7,3.2078]
[1762184170952,0.0019559,3622.3,3621.2,3.2078]
[1762184171148,0.03765187,3621.8,3621.6,3.2078]
[1762184171352,0.03765187,3621.8,3621.7,3.2078]
[1762184172547,0.00115591,3622.3,3621.9,0.49711]
[1762184172749,0.00115591,3622.3,3622.2,3.2078]
[1762184173048,3.2078,3624.2,3622.5,0.49704]
[1762184173049,0.49684,3624.1,3622.5,0.49704]
[1762184173244,1.3577,3624.4,3623.9,3.2078]
[1762184173445,1.85449,3624.4,3624.3,3.2078]
[1762184173653,0.49684,3624.0,3623.6,3.2078]
[1762184173852,0.49691,3623.5,3623.1,3.2078]
[1762184174146,0.49691,3623.5,3623.1,3.21071788]
[1762184174147,0.00335241,3623.5,3623.1,3.21071788]
[1762184174362,3.2078,3626.7,3623.4,3.2078]
[1762184174645,1.81908145,3628.4,3624.5,3.2078]
[1762184174646,1.3356,3625.6,3624.5,3.2078]
[1762184174950,1.3356,3625.6,3625.2,3.2078]
[1762184175148,1.3356,3625.6,3624.7,3.2078]
[1762184175345,1.33792351,3625.6,3625.0,3.2078]
[1762184175853,1.33792351,3625.6,3623.2,53.22363]
[1762184175854,1.33792351,3625.6,3625.5,3.2078]
[1762184176051,0.00232351,3625.6,3625.5,3.2078]
[1762184176550,0.496,3627.2,3625.5,10.103]
[1762184176746,3.2078,3627.9,3627.0,3.2078]
[1762184176946,3.2078,3628.3,3626.2,3.2078]
[1762184177147,3.2078,3628.3,3627.3,3.2078]
[1762184177547,3.21060384,3628.3,3627.7,3.2078]
[1762184177951,3.21060384,3628.3,3627.3,0.00357862]
[1762184178258,6.8912,3628.2,3626.2,3.2078]
[1762184178455,3.2078,3626.3,3625.1,2.45909498]
[1762184178660,3.2078,3625.3,3623.8,2.45909498]
[1762184178860,3.2078,3625.3,3624.2,3.2078]
[1762184179250,3.2078,3625.9,3624.7,0.00357862]
[1762184179554,0.00214703,3625.3,3624.2,0.00209905]
[1762184179758,1.3356,3627.2,3625.2,3.2078]
[1762184179963,1.3356,3627.2,3624.2,0.00209905]
[1762184179964,3.2078,3626.4,3624.5,3.2078]
[1762184180153,1.3356,3627.2,3624.5,3.2078]
[1762184180154,3.2078,3625.5,3624.5,3.2078]
[1762184180354,3.2078,3625.0,3624.2,0.00209905]
[1762184180557,3.2078,3626.3,3624.8,3.2078]
[1762184180754,3.21027772,3626.3,3624.8,3.2078]
[1762184180953,3.2078,3625.9,3624.7,3.2078]
[1762184181260,0.00247772,3626.3,3625.1,0.00357862]
[1762184181558,0.03399894,3625.7,3625.6,3.2078]
[1762184182059,0.03399894,3625.7,3625.5,3.2078]
[1762184182555,0.00247772,3626.3,3625.5,3.2078]
[1762184182757,0.00247772,3626.3,3624.2,0.00209905]
[1762184182758,0.53062894,3625.6,3625.1,3.2078]
[1762184183060,0.49674,3624.7,3624.6,3.2078]
[1762184183357,0.03399894,3625.6,3624.6,3.2078]
[1762184183358,0.53061894,3625.6,3624.6,3.2078]
[1762184183559,0.03399894,3625.6,3625.5,3.2078]
[1762184183750,0.49657,3626.0,3624.6,1.4645951]
[1762184184055,3.2078,3626.1,3624.6,1.4645951]